[Event "28th Hit Open-A 2024"]
[Site "Nova Gorica"]
[Date "2024.01.31"]
[Round "7.12"]
[White "Siraj, Svit"]
[Black "Lavrencic, Matic"]
[Result "1/2-1/2"]
[ECO "B51"]
[WhiteElo "2182"]
[BlackElo "2299"]
[Annotator "NA RC"]
[PlyCount "56"]
[EventDate "2024.01.22"]
[EventType "swiss"]
[EventCountry "SLO"]
[SourceTitle "playchess.com"]
[Source "ChessBase"]
[SourceQuality "1"]
[TimeControl "5400+30"]

1. e4 {[%emt 0:00:06]} c5 {[%emt 0:00:09]} 2. Nf3 {[%emt 0:00:09]} d6 {[%emt 0:00:06]} 3. Bb5+ {[%emt 0:00:25]} Nd7 {[%emt 0:00:15]} 4. d4 {[%emt 0:01:03]} cxd4 {[%emt 0:00:51]} 5. Qxd4 {[%emt 0:00:10]} a6 $11 {[%emt 0:00:06]} 6. Bxd7+ {[%emt 0:01:10]} Qxd7 {[%emt 0:00:20]} 7. O-O {[%emt 0:00:09]} e5 {[%emt 0:01:22]} 8. Qd3 {[%emt 0:00:22]} Qc6 {[%emt 0:00:24]} 9. c4 {[%emt 0:03:54]} Be6 {[%emt 0:00:20]} 10. b3 {[%emt 0:00:43]} b5 {[%emt 0:00:29]} 11. cxb5 {[%emt 0:01:09]} Qxb5 {[%emt 0:00:23]} 12. Qe3 {[%emt 0:14:28]} Nf6 {[%emt 0:05:00]} 13. Nc3 {[%emt 0:01:15]} Qb4 {[%emt 0:06:51]} 14. Bd2 {[%emt 0:03:08]} Qb7 {[%emt 0:00:27]} 15. Ng5 {[%emt 0:07:33]} Bd7 {[%emt 0:01:35]} 16. f4 {[%emt 0:01:23]} Qa7 {[%emt 0:28:46]} 17. Qxa7 {[%emt 0:02:07]} Rxa7 {[%emt 0:00:08]} 18. Nf3 {[%emt 0:00:17]} exf4 {[%emt 0:06:59]} 19. Bxf4 {[%emt 0:01:11]} Be6 {[%emt 0:07:26]} 20. Rad1 {[%emt 0:06:00]} Rc7 {[%emt 0:04:16]} 21. Rc1 {[%emt 0:07:38]} Be7 {[%emt 0:13:40]} 22. Nd5 {[%emt 0:05:51]} Rxc1 {[%emt 0:10:35]} 23. Nxf6+ {[%emt 0:01:40]} gxf6 {[%emt 0:00:05]} 24. Rxc1 {[%emt 0:00:19]} Kd7 {[%emt 0:00:04]} 25. Nd4 {[%emt 0:02:16]} Rb8 {[%emt 0:01:30]} 26. Nc6 {[%emt 0:01:46]} Rc8 {[%emt 0:00:09]} 27. Nxe7 {[%emt 0:00:08]} Rxc1+ {[%emt 0:00:02]} 28. Bxc1 {[%emt 0:00:06]} Kxe7 {[%emt 0:00:03]} 1/2-1/2

[Event "28th Hit Open-A 2024"]
[Site "Nova Gorica"]
[Date "2024.01.31"]
[Round "7.13"]
[White "Belyaletdinov, Leonard"]
[Black "Perossa, Nicolas"]
[Result "0-1"]
[ECO "A48"]
[WhiteElo "1581"]
[BlackElo "2277"]
[Annotator "NA RC"]
[PlyCount "64"]
[EventDate "2024.01.22"]
[EventType "swiss"]
[EventCountry "SLO"]
[SourceTitle "playchess.com"]
[Source "ChessBase"]
[SourceQuality "1"]
[TimeControl "5400+30"]

1. d4 {[%emt 0:00:03]} Nf6 {[%emt 0:00:06]} 2. Nf3 {[%emt 0:00:06]} g6 {[%emt 0:00:16]} 3. Bg5 {[%emt 0:00:10]} Bg7 {[%emt 0:00:07]} 4. e3 {[%emt 0:00:17]} h6 {[%emt 0:00:07]} 5. Bh4 {[%emt 0:00:04]} d6 {[%emt 0:00:23]} 6. Bd3 {[%emt 0:00:17]} Nbd7 {[%emt 0:01:17]} 7. c4 {[%emt 0:00:20]} O-O {[%emt 0:09:34]} 8. Nc3 {[%emt 0:00:38]} e5 {[%emt 0:11:36]} 9. O-O {[%emt 0:09:06]} c6 {[%emt 0:07:06]} 10. Bg3 {[%emt 0:01:59]} Nh5 {[%emt 0:09:53]} 11. Bh4 {[%emt 0:00:17]} Nhf6 {[%emt 0:04:13]} 12. Bg3 {[%emt 0:00:28]} Qe8 {[%emt 0:00:27]} 13. Nd2 {[%emt 0:00:42]} Nh5 {[%emt 0:02:11]} 14. d5 {[%emt 0:04:19]} f5 {[%emt 0:02:24]} 15. h3 {[%emt 0:00:00]} Nxg3 {[%emt 0:01:15]} 16. fxg3 {[%emt 0:00:00]} e4 {[%emt 0:04:45]} 17. Be2 {[%emt 0:00:00]} Qe5 {[%emt 0:08:29]} 18. g4 {[%emt 0:02:14]} Qg3 {[%emt 0:02:26]} 19. gxf5 {[%emt 0:04:49]} Be5 {[%emt 0:02:42]} 20. Ncxe4 {[%emt 0:07:49]} Qh2+ {[%emt 0:00:26]} 21. Kf2 {[%emt 0:00:10]} gxf5 {[%emt 0:00:12]} 22. Ke1 {[%emt 0:27:55]} fxe4 {[%emt 0:01:44]} 23. Nxe4 {[%emt 0:01:09]} Qxg2 {[%emt 0:00:55]} 24. Bf3 {[%emt 0:03:58]} Qxb2 {[%emt 0:01:34]} 25. Rc1 {[%emt 0:01:00]} Nc5 {[%emt 0:03:43]} 26. Rg1+ {[%emt 0:01:22]} Kh8 {[%emt 0:00:26]} 27. Rc2 {[%emt 0:00:31]} Qb4+ {[%emt 0:00:11]} 28. Nd2 {[%emt 0:01:12]} Bf5 {[%emt 0:00:40]} 29. e4 {[%emt 0:00:18]} Bd4 {[%emt 0:01:51]} 30. Rg3 {[%emt 0:00:50]} Bxe4 {[%emt 0:02:11]} 31. a3 {[%emt 0:01:03]} Rae8 {[%emt 0:02:13]} 32. axb4 {[%emt 0:02:32]} Bxf3+ {[%emt 0:00:13]} 0-1

[Event "28th Hit Open-A 2024"]
[Site "Nova Gorica"]
[Date "2024.01.31"]
[Round "7.14"]
[White "Drazic, Sinisa"]
[Black "Szegedy, Matyas"]
[Result "1/2-1/2"]
[ECO "B15"]
[WhiteElo "2270"]
[BlackElo "2129"]
[Annotator "RC"]
[PlyCount "136"]
[EventDate "2024.01.22"]
[EventType "swiss"]
[EventCountry "SLO"]
[SourceTitle "playchess.com"]
[Source "ChessBase"]
[SourceQuality "1"]
[TimeControl "5400+30"]

1. e4 {[%emt 0:02:14]} c6 {[%emt 0:00:20]} 2. d4 {[%emt 0:00:49]} d5 {[%emt 0:00:28]} 3. f3 {[%emt 0:00:03]} g6 {[%emt 0:00:18]} 4. Nc3 {[%emt 0:00:08]} Bg7 {[%emt 0:00:09]} 5. Be3 {[%emt 0:00:18]} Qb6 {[%emt 0:00:26]} 6. a3 {[%emt 0:01:44]} dxe4 {[%emt 0:01:26]} 7. fxe4 {[%emt 0:01:50]} e5 {[%emt 0:00:14]} 8. Nf3 {[%emt 0:00:18]} Nd7 {[%emt 0:01:19]} 9. Bc4 {[%emt 0:00:48]} Ngf6 {[%emt 0:04:05]} 10. h3 {[%emt 0:04:51]} O-O {[%emt 0:04:55]} 11. O-O {[%emt 0:05:59]} Ne8 {[%emt 0:29:11]} 12. Qd2 {[%emt 0:04:30]} exd4 {[%emt 0:04:13]} 13. Nxd4 {[%emt 0:00:55]} Ne5 {[%emt 0:00:53]} 14. Bb3 {[%emt 0:00:41]} Qc7 {[%emt 0:00:09]} 15. Rad1 {[%emt 0:01:24]} b6 {[%emt 0:01:21]} 16. Nf3 {[%emt 0:05:30]} Ba6 {[%emt 0:07:58]} 17. Nxe5 {[%emt 0:00:50]} Bxe5 {[%emt 0:02:59]} 18. Rf3 {[%emt 0:02:12]} Nd6 {[%emt 0:23:01]} 19. Bh6 {[%emt 0:22:04]} Rfe8 {[%emt 0:03:18]} 20. Qf2 {[%emt 0:20:27]} Bc4 {[%emt 0:02:21]} 21. Bf4 {[%emt 0:09:44]} Bxb3 {[%emt 0:00:56]} 22. cxb3 {[%emt 0:00:01]} Bxf4 {[%emt 0:01:29]} 23. Rxf4 {[%emt 0:00:02]} Re6 {[%emt 0:00:43]} 24. Rf1 {[%emt 0:03:36]} Rae8 {[%emt 0:00:54]} 25. Qg3 {[%emt 0:02:42]} R8e7 {[%emt 0:01:58]} 26. Rf6 {[%emt 0:02:06]} Ne8 {[%emt 0:02:25]} 27. Rxe6 {[%emt 0:00:30]} Rxe6 {[%emt 0:01:24]} 28. Qg5 {[%emt 0:01:52]} Qe7 {[%emt 0:01:00]} 29. Qf4 {[%emt 0:00:27]} Nd6 {[%emt 0:01:09]} 30. Re1 {[%emt 0:01:14]} Re5 {[%emt 0:00:10]} 31. Re2 {[%emt 0:01:28]} Kg7 {[%emt 0:01:11]} 32. Qf3 {[%emt 0:00:16]} h5 {[%emt 0:00:36]} 33. Qd3 {[%emt 0:00:13]} Kh7 {[%emt 0:01:23]} 34. b4 {[%emt 0:00:25]} b5 {[%emt 0:00:22]} 35. b3 {[%emt 0:01:11]} Re6 {[%emt 0:01:23]} 36. Qd4 {[%emt 0:01:42]} Qg5 {[%emt 0:00:30]} 37. Re1 {[%emt 0:01:21]} Qg3 {[%emt 0:00:27]} 38. Re3 {[%emt 0:00:28]} Nf5 {[%emt 0:01:34]} 39. Rxg3 {[%emt 0:00:03]} Nxd4 {[%emt 0:00:09]} 40. Rd3 {[%emt 0:00:04]} Nxb3 {[%emt 0:00:11]} 41. Rd7 {[%emt 0:00:01]} Kg7 {[%emt 0:00:14]} 42. Rxa7 {[%emt 0:00:08]} Nd2 {[%emt 0:00:08]} 43. Rc7 {[%emt 0:00:19]} Nc4 {[%emt 0:00:24]} 44. a4 {[%emt 0:00:33]} bxa4 {[%emt 0:00:07]} 45. Nxa4 {[%emt 0:00:01]} Rd6 {[%emt 0:00:11]} 46. Nc5 {[%emt 0:00:28]} Ne5 {[%emt 0:00:10]} 47. Rb7 {[%emt 0:01:33]} Rd2 {[%emt 0:00:25]} 48. b5 {[%emt 0:01:05]} cxb5 {[%emt 0:02:09]} 49. Rxb5 {[%emt 0:00:05]} Kf6 {[%emt 0:00:26]} 50. Rb3 {[%emt 0:02:07]} h4 {[%emt 0:00:20]} 51. Rc3 {[%emt 0:00:37]} Kg5 {[%emt 0:01:08]} 52. Rc1 {[%emt 0:00:57]} Rb2 {[%emt 0:00:55]} 53. Rc3 {[%emt 0:00:41]} Rd2 {[%emt 0:00:05]} 54. Rc1 {[%emt 0:00:04]} Kf4 {[%emt 0:00:11]} 55. Rc3 {[%emt 0:00:09]} Rd1+ {[%emt 0:00:54]} 56. Kf2 {[%emt 0:00:11]} Rd2+ {[%emt 0:00:06]} 57. Kf1 {[%emt 0:00:14]} Ra2 {[%emt 0:00:26]} 58. Kg1 {[%emt 0:00:57]} g5 {[%emt 0:00:54]} 59. Kf1 {[%emt 0:00:16]} Ra1+ {[%emt 0:00:31]} 60. Ke2 {[%emt 0:00:20]} g4 {[%emt 0:00:25]} 61. hxg4 {[%emt 0:00:27]} Kxg4 {[%emt 0:00:04]} 62. Kf2 {[%emt 0:00:55]} Ng6 {[%emt 0:00:33]} 63. Nd3 {[%emt 0:00:42]} Ra2+ {[%emt 0:00:26]} 64. Kf1 {[%emt 0:00:06]} Ra1+ {[%emt 0:00:37]} 65. Kf2 {[%emt 0:00:15]} Ra2+ {[%emt 0:00:06]} 66. Kg1 {[%emt 0:00:42]} Ra1+ {[%emt 0:00:27]} 67. Kh2 {[%emt 0:00:05]} Ra2 {[%emt 0:00:05]} 68. Kg1 {[%emt 0:00:04]} Ra1+ {[%emt 0:00:05]} 1/2-1/2

[Event "28th Hit Open-A 2024"]
[Site "Nova Gorica"]
[Date "2024.01.31"]
[Round "7.15"]
[White "Djuric, Stefan"]
[Black "Centrih, Aleks"]
[Result "1-0"]
[ECO "D02"]
[WhiteElo "2220"]
[BlackElo "2082"]
[Annotator "RC"]
[PlyCount "91"]
[EventDate "2024.01.22"]
[EventType "swiss"]
[EventCountry "SLO"]
[SourceTitle "playchess.com"]
[Source "ChessBase"]
[SourceQuality "1"]
[TimeControl "5400+30"]

1. d4 {[%emt 0:10:02]} d5 {[%emt 0:00:30]} 2. Nf3 {[%emt 0:00:06]} Nf6 {[%emt 0:00:51]} 3. Bf4 {[%emt 0:00:03]} c5 {[%emt 0:00:09]} 4. e3 {[%emt 0:00:45]} Nc6 {[%emt 0:00:06]} 5. c3 {[%emt 0:00:33]} Qb6 {[%emt 0:00:29]} 6. Qc1 {[%emt 0:00:48]} Bf5 {[%emt 0:03:00]} 7. Be2 {[%emt 0:00:23]} e6 {[%emt 0:00:32]} 8. O-O {[%emt 0:00:12]} Be7 {[%emt 0:02:09]} 9. Nbd2 {[%emt 0:00:51]} h6 {[%emt 0:03:35]} 10. dxc5 {[%emt 0:07:45]} Bxc5 {[%emt 0:07:11]} 11. Nd4 {[%emt 0:00:27]} Bxd4 {[%emt 0:19:50]} 12. exd4 {[%emt 0:00:02]} O-O {[%emt 0:00:08]} 13. h3 {[%emt 0:06:15]} Rac8 {[%emt 0:01:46]} 14. Nf3 {[%emt 0:03:02]} Qd8 {[%emt 0:01:15]} 15. Qe3 {[%emt 0:01:05]} Ne4 {[%emt 0:03:58]} 16. Ne5 {[%emt 0:05:32]} Nxe5 {[%emt 0:20:45]} 17. dxe5 {[%emt 0:00:13]} Nc5 {[%emt 0:08:48]} 18. Rad1 {[%emt 0:00:58]} Qb6 {[%emt 0:01:17]} 19. Rd2 {[%emt 0:04:15]} Ne4 {[%emt 0:10:07]} 20. Qxb6 {[%emt 0:00:15]} axb6 {[%emt 0:00:02]} 21. Rd4 {[%emt 0:00:02]} Nc5 {[%emt 0:03:03]} 22. Rfd1 {[%emt 0:00:58]} Ra8 {[%emt 0:00:56]} 23. a3 {[%emt 0:00:32]} Ra4 {[%emt 0:01:52]} 24. Be3 {[%emt 0:02:53]} Rfa8 {[%emt 0:02:13]} 25. Rb4 {[%emt 0:00:42]} Rxb4 {[%emt 0:01:57]} 26. cxb4 {[%emt 0:00:31]} Nd7 {[%emt 0:00:48]} 27. f4 {[%emt 0:01:24]} Rc8 {[%emt 0:00:40]} 28. Bb5 {[%emt 0:01:27]} Nb8 {[%emt 0:00:37]} 29. Rd2 {[%emt 0:00:25]} Nc6 {[%emt 0:02:10]} 30. Bxb6 {[%emt 0:00:24]} g5 {[%emt 0:00:21]} 31. Be3 {[%emt 0:00:59]} gxf4 {[%emt 0:01:34]} 32. Bxf4 {[%emt 0:00:03]} Kh7 {[%emt 0:00:06]} 33. Bf1 {[%emt 0:03:30]} Be4 {[%emt 0:02:10]} 34. Kf2 {[%emt 0:03:55]} Ne7 {[%emt 0:00:51]} 35. Be3 {[%emt 0:00:21]} Nf5 {[%emt 0:00:55]} 36. Bc5 {[%emt 0:00:06]} h5 {[%emt 0:01:01]} 37. a4 {[%emt 0:04:15]} Rg8 {[%emt 0:00:22]} 38. a5 {[%emt 0:00:07]} Rg3 {[%emt 0:00:48]} 39. b5 {[%emt 0:00:36]} Rg8 {[%emt 0:00:34]} 40. a6 {[%emt 0:00:15]} bxa6 {[%emt 0:00:03]} 41. bxa6 {[%emt 0:00:01]} Ng3 {[%emt 0:00:54]} 42. b4 {[%emt 0:01:16]} d4 {[%emt 0:00:34]} 43. Rxd4 {[%emt 0:00:29]} Bd5 {[%emt 0:00:18]} 44. Bd3+ {[%emt 0:00:35]} Kh6 {[%emt 0:00:21]} 45. Rxd5 {[%emt 0:00:48]} exd5 {[%emt 0:00:01]} 46. Be3+ {[%emt 0:00:06]} 1-0

[Event "28th Hit Open-A 2024"]
[Site "Nova Gorica"]
[Date "2024.01.31"]
[Round "7.16"]
[White "Gregoric, Andraz"]
[Black "Orsatti, Marcello"]
[Result "1-0"]
[ECO "B40"]
[WhiteElo "2217"]
[BlackElo "1918"]
[Annotator "RC"]
[PlyCount "113"]
[EventDate "2024.01.22"]
[EventType "swiss"]
[EventCountry "SLO"]
[SourceTitle "playchess.com"]
[Source "ChessBase"]
[SourceQuality "1"]
[TimeControl "5400+30"]

1. e4 {[%emt 0:00:45]} c5 {[%emt 0:00:28]} 2. Nf3 {[%emt 0:00:08]} e6 {[%emt 0:00:15]} 3. b3 {[%emt 0:02:50]} d5 {[%emt 0:02:15]} 4. exd5 {[%emt 0:00:06]} exd5 {[%emt 0:01:17]} 5. Bb2 {[%emt 0:02:31]} Nf6 {[%emt 0:00:20]} 6. Bb5+ {[%emt 0:01:16]} Nc6 {[%emt 0:15:45]} 7. Qe2+ {[%emt 0:03:28]} Be7 {[%emt 0:03:50]} 8. Bxf6 {[%emt 0:03:19]} gxf6 {[%emt 0:00:04]} 9. Nc3 {[%emt 0:03:16]} Be6 {[%emt 0:01:51]} 10. O-O {[%emt 0:02:34]} Qd7 {[%emt 0:04:58]} 11. d4 {[%emt 0:02:46]} a6 {[%emt 0:01:45]} 12. Bxc6 {[%emt 0:01:26]} Qxc6 {[%emt 0:00:45]} 13. dxc5 {[%emt 0:03:43]} Bxc5 {[%emt 0:04:30]} 14. Na4 {[%emt 0:01:09]} Ba7 {[%emt 0:01:08]} 15. Rad1 {[%emt 0:03:04]} O-O-O {[%emt 0:00:30]} 16. c3 {[%emt 0:17:16]} Rhg8 {[%emt 0:05:57]} 17. Rfe1 {[%emt 0:06:42]} Bg4 {[%emt 0:07:36]} 18. Rd3 {[%emt 0:02:40]} Bf5 {[%emt 0:07:36]} 19. Nd4 {[%emt 0:09:10]} Bxd3 {[%emt 0:06:47]} 20. Nxc6 {[%emt 0:00:41]} Bxe2 {[%emt 0:00:13]} 21. Ne7+ {[%emt 0:00:49]} Kd7 {[%emt 0:00:25]} 22. Nxg8 {[%emt 0:00:08]} Rxg8 {[%emt 0:01:49]} 23. Rxe2 {[%emt 0:00:01]} Rc8 {[%emt 0:02:15]} 24. Rd2 {[%emt 0:03:01]} Ke6 {[%emt 0:00:19]} 25. Rd3 {[%emt 0:00:24]} d4 {[%emt 0:06:36]} 26. c4 {[%emt 0:00:15]} b5 {[%emt 0:00:31]} 27. Nb2 {[%emt 0:00:04]} Rc5 {[%emt 0:00:57]} 28. Kf1 {[%emt 0:04:53]} Rh5 {[%emt 0:00:52]} 29. h3 {[%emt 0:00:39]} Rf5 {[%emt 0:03:01]} 30. Rd2 {[%emt 0:02:32]} Bb6 {[%emt 0:01:07]} 31. Ke2 {[%emt 0:00:46]} h5 {[%emt 0:01:45]} 32. h4 {[%emt 0:04:43]} Ba5 {[%emt 0:04:32]} 33. Rxd4 {[%emt 0:01:02]} Re5+ {[%emt 0:08:27]} 34. Kd3 {[%emt 0:00:05]} Bb6 {[%emt 0:00:59]} 35. Rf4 {[%emt 0:00:05]} Re1 {[%emt 0:00:13]} 36. cxb5 {[%emt 0:09:06]} axb5 {[%emt 0:00:11]} 37. a4 {[%emt 0:01:11]} Rb1 {[%emt 0:01:08]} 38. Kc2 {[%emt 0:00:42]} Re1 {[%emt 0:01:12]} 39. Nd3 {[%emt 0:01:45]} Rg1 {[%emt 0:00:36]} 40. g3 {[%emt 0:02:47]} bxa4 {[%emt 0:00:01]} 41. Rxa4 {[%emt 0:01:29]} Bc7 {[%emt 0:01:56]} 42. b4 {[%emt 0:04:01]} Rg2 {[%emt 0:00:15]} 43. Kb3 {[%emt 0:00:11]} Rg1 {[%emt 0:00:11]} 44. b5 {[%emt 0:00:32]} Rb1+ {[%emt 0:01:02]} 45. Kc4 {[%emt 0:00:02]} Bd6 {[%emt 0:00:54]} 46. Ra2 {[%emt 0:00:35]} Kd7 {[%emt 0:00:38]} 47. Rb2 {[%emt 0:01:08]} Ra1 {[%emt 0:00:18]} 48. Rb3 {[%emt 0:00:46]} Ra2 {[%emt 0:01:09]} 49. Kd4 {[%emt 0:00:27]} Kc7 {[%emt 0:00:40]} 50. Ke4 {[%emt 0:00:44]} Kb6 {[%emt 0:00:54]} 51. Kf3 {[%emt 0:00:15]} Ra4 {[%emt 0:00:43]} 52. Nc1 {[%emt 0:00:49]} Ra3 {[%emt 0:01:02]} 53. Rxa3 {[%emt 0:00:07]} Bxa3 {[%emt 0:00:01]} 54. Nd3 {[%emt 0:00:15]} Kxb5 {[%emt 0:00:05]} 55. Nf4 {[%emt 0:00:03]} Kc5 {[%emt 0:00:29]} 56. Nxh5 {[%emt 0:00:07]} f5 {[%emt 0:00:17]} 57. Kf4 {[%emt 0:00:42]} 1-0

[Event "28th Hit Open-A 2024"]
[Site "Nova Gorica"]
[Date "2024.01.31"]
[Round "7.17"]
[White "Zupancic, Jernej"]
[Black "Rigatti, Giorgio"]
[Result "1-0"]
[ECO "E60"]
[WhiteElo "2211"]
[BlackElo "1749"]
[Annotator "NA RC"]
[PlyCount "81"]
[EventDate "2024.01.22"]
[EventType "swiss"]
[EventCountry "SLO"]
[SourceTitle "playchess.com"]
[Source "ChessBase"]
[SourceQuality "1"]
[TimeControl "5400+30"]

1. d4 {[%emt 0:00:02]} Nf6 {[%emt 0:00:21]} 2. c4 {[%emt 0:00:07]} g6 {[%emt 0:00:10]} 3. h4 {[%emt 0:00:07]} b6 {[%emt 0:04:10]} 4. Nc3 {[%emt 0:00:56]} Bb7 {[%emt 0:00:10]} 5. d5 {[%emt 0:03:11]} Na6 {[%emt 0:04:23]} 6. e4 {[%emt 0:01:33]} e5 {[%emt 0:00:51]} 7. f3 {[%emt 0:04:03]} Bb4 {[%emt 0:04:49]} 8. Qc2 {[%emt 0:01:23]} Qe7 {[%emt 0:08:14]} 9. a3 {[%emt 0:01:33]} Bxc3+ {[%emt 0:01:21]} 10. Qxc3 {[%emt 0:00:08]} c5 {[%emt 0:00:14]} 11. Bd3 {[%emt 0:03:44]} d6 {[%emt 0:04:04]} 12. Ne2 {[%emt 0:00:32]} Nd7 {[%emt 0:01:45]} 13. Bh6 {[%emt 0:02:26]} Nc7 {[%emt 0:01:06]} 14. Qd2 {[%emt 0:00:39]} a6 {[%emt 0:02:02]} 15. Nc3 {[%emt 0:00:52]} O-O-O {[%emt 0:02:15]} 16. b4 {[%emt 0:01:08]} Rdg8 {[%emt 0:01:39]} 17. Rb1 {[%emt 0:01:18]} Na8 {[%emt 0:04:54]} 18. Bc2 {[%emt 0:04:33]} Qd8 {[%emt 0:06:40]} 19. Ba4 {[%emt 0:04:50]} cxb4 {[%emt 0:04:30]} 20. axb4 {[%emt 0:00:28]} Qc7 {[%emt 0:00:23]} 21. Be3 {[%emt 0:00:40]} Kd8 {[%emt 0:02:47]} 22. Bxd7 {[%emt 0:06:11]} Kxd7 {[%emt 0:00:30]} 23. c5 {[%emt 0:00:11]} Ke7 {[%emt 0:05:06]} 24. c6 {[%emt 0:05:43]} Bc8 {[%emt 0:00:10]} 25. b5 {[%emt 0:00:08]} f5 {[%emt 0:01:20]} 26. bxa6 {[%emt 0:01:00]} f4 {[%emt 0:03:18]} 27. Bf2 {[%emt 0:00:10]} g5 {[%emt 0:01:18]} 28. hxg5 {[%emt 0:00:40]} Kf7 {[%emt 0:00:14]} 29. Nb5 {[%emt 0:01:15]} Qe7 {[%emt 0:01:18]} 30. Qb4 {[%emt 0:00:13]} Rd8 {[%emt 0:01:24]} 31. g6+ {[%emt 0:00:46]} hxg6 {[%emt 0:01:05]} 32. Rxh8 {[%emt 0:00:16]} Rxh8 {[%emt 0:00:03]} 33. Nxd6+ {[%emt 0:00:14]} Kf6 {[%emt 0:07:06]} 34. Nxc8 {[%emt 0:00:52]} Rxc8 {[%emt 0:00:13]} 35. Qxe7+ {[%emt 0:00:12]} Kxe7 {[%emt 0:00:02]} 36. Bxb6 {[%emt 0:00:45]} Rh8 {[%emt 0:02:38]} 37. Kf2 {[%emt 0:00:41]} g5 {[%emt 0:00:20]} 38. a7 {[%emt 0:00:28]} g4 {[%emt 0:00:58]} 39. fxg4 {[%emt 0:00:34]} f3 {[%emt 0:00:14]} 40. Kxf3 {[%emt 0:00:26]} Kd6 {[%emt 0:01:59]} 41. Ba5 {[%emt 0:00:33]} 1-0

[Event "28th Hit Open-A 2024"]
[Site "Nova Gorica"]
[Date "2024.01.31"]
[Round "7.18"]
[White "Bazilius, Augustinas"]
[Black "Marchesich, Giovanni"]
[Result "1/2-1/2"]
[ECO "E90"]
[WhiteElo "2030"]
[BlackElo "2210"]
[Annotator "RC"]
[PlyCount "28"]
[EventDate "2024.01.22"]
[EventType "swiss"]
[EventCountry "SLO"]
[SourceTitle "playchess.com"]
[Source "ChessBase"]
[SourceQuality "1"]
[TimeControl "5400+30"]

1. Nf3 {[%emt 0:03:28]} Nf6 {[%emt 0:00:13]} 2. d4 {[%emt 0:00:15]} g6 {[%emt 0:00:14]} 3. c4 {[%emt 0:00:06]} Bg7 {[%emt 0:00:09]} 4. Nc3 {[%emt 0:00:07]} O-O {[%emt 0:00:53]} 5. e4 {[%emt 0:00:02]} d6 {[%emt 0:00:16]} 6. Bd3 {[%emt 0:00:02]} Nc6 {[%emt 0:05:29]} 7. d5 {[%emt 0:00:35]} Nb4 {[%emt 0:00:22]} 8. Be2 {[%emt 0:00:06]} e6 {[%emt 0:00:59]} 9. dxe6 {[%emt 0:01:25]} Bxe6 {[%emt 0:01:57]} 10. Nd4 {[%emt 0:01:26]} Bd7 {[%emt 0:02:23]} 11. O-O {[%emt 0:00:32]} Re8 {[%emt 0:01:34]} 12. f3 {[%emt 0:01:01]} Nc6 {[%emt 0:03:16]} 13. Be3 {[%emt 0:24:04]} Nh5 {[%emt 0:22:50]} 14. f4 {[%emt 0:00:00]} Qh4 {[%emt 0:02:12]} 1/2-1/2

[Event "28th Hit Open-A 2024"]
[Site "Nova Gorica"]
[Date "2024.01.31"]
[Round "7.19"]
[White "Privitera, Franco"]
[Black "Trybus, Daniel"]
[Result "1-0"]
[ECO "A44"]
[WhiteElo "1919"]
[BlackElo "2039"]
[Annotator "NA RC"]
[PlyCount "73"]
[EventDate "2024.01.22"]
[EventType "swiss"]
[EventCountry "SLO"]
[SourceTitle "playchess.com"]
[Source "ChessBase"]
[SourceQuality "1"]
[TimeControl "5400+30"]

1. c4 {[%emt 0:00:10]} g6 {[%emt 0:00:04]} 2. Nc3 {[%emt 0:00:11]} Bg7 {[%emt 0:00:04]} 3. d4 {[%emt 0:00:18]} c5 {[%emt 0:00:07]} 4. d5 {[%emt 0:00:24]} e5 {[%emt 0:00:16]} 5. e4 {[%emt 0:00:29]} d6 {[%emt 0:00:07]} 6. Be2 {[%emt 0:06:03]} h5 {[%emt 0:03:36]} 7. Nf3 {[%emt 0:01:29]} Bh6 {[%emt 0:00:11]} 8. O-O {[%emt 0:08:52]} a6 {[%emt 0:02:17]} 9. a3 {[%emt 0:01:57]} Nd7 {[%emt 0:01:38]} 10. b4 {[%emt 0:03:20]} Bxc1 {[%emt 0:00:42]} 11. Rxc1 {[%emt 0:00:52]} Ngf6 {[%emt 0:01:07]} 12. Ne1 {[%emt 0:00:28]} a5 {[%emt 0:02:30]} 13. Nd3 {[%emt 0:20:32]} axb4 {[%emt 0:00:17]} 14. axb4 {[%emt 0:00:04]} cxb4 {[%emt 0:00:04]} 15. Nxb4 {[%emt 0:02:51]} Nc5 {[%emt 0:00:10]} 16. Bf3 {[%emt 0:01:01]} Bd7 {[%emt 0:05:38]} 17. Nd3 {[%emt 0:03:00]} b6 {[%emt 0:03:33]} 18. Nxc5 {[%emt 0:02:07]} bxc5 {[%emt 0:00:10]} 19. Qd2 {[%emt 0:02:54]} O-O {[%emt 0:03:00]} 20. Be2 {[%emt 0:00:25]} Kg7 {[%emt 0:02:54]} 21. f4 {[%emt 0:02:40]} exf4 {[%emt 0:00:29]} 22. Qxf4 {[%emt 0:00:58]} Qe7 {[%emt 0:00:07]} 23. Qg5 {[%emt 0:03:04]} Rfe8 {[%emt 0:04:02]} 24. Bf3 {[%emt 0:02:24]} Ra3 {[%emt 0:01:02]} 25. Rfe1 {[%emt 0:02:33]} Rb3 {[%emt 0:03:37]} 26. h3 {[%emt 0:08:52]} Qe5 {[%emt 0:02:59]} 27. Qxe5 {[%emt 0:03:19]} Rxe5 {[%emt 0:00:02]} 28. Nd1 {[%emt 0:01:31]} Rb4 {[%emt 0:00:31]} 29. Nf2 {[%emt 0:00:13]} Rb3 {[%emt 0:02:26]} 30. Rb1 {[%emt 0:02:14]} Ba4 {[%emt 0:03:39]} 31. Ra1 {[%emt 0:02:57]} Bd7 {[%emt 0:00:16]} 32. Ra6 {[%emt 0:01:01]} Ne8 {[%emt 0:00:10]} 33. Ra7 {[%emt 0:00:58]} Nf6 {[%emt 0:05:28]} 34. Rea1 {[%emt 0:01:30]} g5 {[%emt 0:02:01]} 35. Bxh5 {[%emt 0:01:28]} Kf8 {[%emt 0:05:44]} 36. Bf3 {[%emt 0:01:17]} Ke7 {[%emt 0:02:51]} 37. Ng4 {[%emt 0:00:41]} 1-0